[Event "Titled Tuesday Blitz July 11 Late 2023"]
[White "Ovchinnikov, Vsevolod"]
[Black "Nepomniachtchi, Ian"]
[WhiteFideId "24176842"]
[BlackFideId "4168119"]
[WhiteElo "2645"]
[BlackElo "3096"]
[Result "0-1"]
[Round "6"]
[TimeControl "180+2"]
[Date "2023.07.11"]
[WhiteClock "0:00:02"]
[BlackClock "0:02:19"]
[Board "25"]

1. d4 {[%clk 0:03:00]}  g6 {[%clk 0:02:58]} 2. Nf3 {[%clk 0:03:00]}  Bg7 {[%clk 0:02:54]} 3. c4 {[%clk 0:03:01]}  f5 {[%clk 0:02:54]} 4. g3 {[%clk 0:03:00]}  Nf6 {[%clk 0:02:54]} 5. Bg2 {[%clk 0:03:01]}  O-O {[%clk 0:02:55]} 6. O-O {[%clk 0:03:01]}  d6 {[%clk 0:02:56]} 7. b3 {[%clk 0:03:02]}  a5 {[%clk 0:02:55]} 8. Bb2 {[%clk 0:03:02]}  a4 {[%clk 0:02:55]} 9. Nbd2 {[%clk 0:02:59]}  Nc6 {[%clk 0:02:53]} 10. Qc2 {[%clk 0:02:50]}  Nb4 {[%clk 0:02:53]} 11. Qb1 {[%clk 0:02:49]}  c6 {[%clk 0:02:46]} 12. a3 {[%clk 0:02:46]}  Na6 {[%clk 0:02:46]} 13. b4 {[%clk 0:02:47]}  Nc7 {[%clk 0:02:47]} 14. Qc2 {[%clk 0:02:41]}  Bd7 {[%clk 0:02:47]} 15. Rad1 {[%clk 0:02:39]}  b5 {[%clk 0:02:47]} 16. e3 {[%clk 0:02:36]}  Rc8 {[%clk 0:02:46]} 17. Rc1 {[%clk 0:02:35]}  h6 {[%clk 0:02:45]} 18. Rfd1 {[%clk 0:02:35]}  Kh7 {[%clk 0:02:45]} 19. Ne1 {[%clk 0:02:34]}  Qe8 {[%clk 0:02:42]} 20. Nd3 {[%clk 0:02:34]}  Be6 {[%clk 0:02:40]} 21. cxb5 {[%clk 0:02:17]}  cxb5 {[%clk 0:02:41]} 22. Qc6 {[%clk 0:02:16]}  Bd5 {[%clk 0:02:32]} 23. Qxe8 {[%clk 0:02:12]}  Rfxe8 {[%clk 0:02:33]} 24. Rc2 {[%clk 0:01:56]}  Bxg2 {[%clk 0:02:31]} 25. Kxg2 {[%clk 0:01:57]}  Ncd5 {[%clk 0:02:32]} 26. Rdc1 {[%clk 0:01:57]}  Nb6 {[%clk 0:02:33]} 27. Rxc8 {[%clk 0:01:46]}  Rxc8 {[%clk 0:02:33]} 28. Rxc8 {[%clk 0:01:46]}  Nxc8 {[%clk 0:02:34]} 29. Nb1 {[%clk 0:01:04]}  Nd5 {[%clk 0:02:34]} 30. Nf4 {[%clk 0:01:02]}  Nc7 {[%clk 0:02:34]} 31. Nd3 {[%clk 0:00:45]}  Nb6 {[%clk 0:02:34]} 32. Kf1 {[%clk 0:00:40]}  g5 {[%clk 0:02:33]} 33. Ke2 {[%clk 0:00:39]}  Kg6 {[%clk 0:02:34]} 34. f3 {[%clk 0:00:35]}  Nc4 {[%clk 0:02:30]} 35. Nd2 {[%clk 0:00:32]}  Kf7 {[%clk 0:02:28]} 36. Bc1 {[%clk 0:00:25]}  Nb6 {[%clk 0:02:25]} 37. Bb2 {[%clk 0:00:25]}  e6 {[%clk 0:02:22]} 38. e4 {[%clk 0:00:24]}  Nc4 {[%clk 0:02:22]} 39. exf5 {[%clk 0:00:10]}  exf5 {[%clk 0:02:21]} 40. Nxc4 {[%clk 0:00:06]}  bxc4 {[%clk 0:02:22]} 41. Ne1 {[%clk 0:00:06]}  Nb5 {[%clk 0:02:22]} 42. Nc2 {[%clk 0:00:05]}  Ke6 {[%clk 0:02:22]} 43. Ke3 {[%clk 0:00:06]}  Kd5 {[%clk 0:02:20]} 44. h3 {[%clk 0:00:04]}  c3 {[%clk 0:02:19]} 45. Bc1 {[%clk 0:00:04]}  Kc4 {[%clk 0:02:20]} 46. g4 {[%clk 0:00:03]}  f4+ {[%clk 0:02:19]} 47. Ke4 {[%clk 0:00:03]}  Nxd4 {[%clk 0:02:18]} 48. Nxd4 {[%clk 0:00:02]}  Bxd4 {[%clk 0:02:19]} 0-1


[Site "https://www.chess.com"]

[Event "Titled Tuesday Blitz July 11 Late 2023"]
[White "Hong, Andrew"]
[Black "Fantinel, Thibault"]
[WhiteFideId "2099438"]
[BlackFideId "663395"]
[WhiteElo "3071"]
[BlackElo "2646"]
[Result "1/2-1/2"]
[Round "6"]
[TimeControl "180+2"]
[Date "2023.07.11"]
[WhiteClock "0:00:04"]
[BlackClock "0:00:07"]
[Board "26"]

1. e4 {[%clk 0:03:00]}  c5 {[%clk 0:02:59]} 2. Nf3 {[%clk 0:03:00]}  e6 {[%clk 0:02:58]} 3. d4 {[%clk 0:02:58]}  cxd4 {[%clk 0:02:59]} 4. Nxd4 {[%clk 0:02:58]}  Nf6 {[%clk 0:02:59]} 5. Nc3 {[%clk 0:02:57]}  Nc6 {[%clk 0:03:00]} 6. Nxc6 {[%clk 0:02:50]}  bxc6 {[%clk 0:03:01]} 7. e5 {[%clk 0:02:51]}  Nd5 {[%clk 0:03:00]} 8. Ne4 {[%clk 0:02:51]}  Qc7 {[%clk 0:03:00]} 9. f4 {[%clk 0:02:51]}  Qb6 {[%clk 0:03:00]} 10. a3 {[%clk 0:02:49]}  a5 {[%clk 0:02:59]} 11. Bd3 {[%clk 0:02:40]}  Be7 {[%clk 0:02:57]} 12. Qe2 {[%clk 0:02:37]}  f5 {[%clk 0:02:53]} 13. Nd6+ {[%clk 0:02:05]}  Bxd6 {[%clk 0:02:50]} 14. exd6 {[%clk 0:02:05]}  O-O {[%clk 0:02:43]} 15. c4 {[%clk 0:02:04]}  Nf6 {[%clk 0:02:42]} 16. Be3 {[%clk 0:01:59]}  c5 {[%clk 0:02:42]} 17. O-O-O {[%clk 0:01:44]}  Bb7 {[%clk 0:02:35]} 18. h3 {[%clk 0:01:36]}  Ne4 {[%clk 0:02:20]} 19. Rhg1 {[%clk 0:01:30]}  Qb3 {[%clk 0:02:09]} 20. g4 {[%clk 0:01:26]}  Bc6 {[%clk 0:02:03]} 21. Qc2 {[%clk 0:01:05]}  Rab8 {[%clk 0:01:48]} 22. gxf5 {[%clk 0:00:50]}  exf5 {[%clk 0:01:47]} 23. Qxb3 {[%clk 0:00:48]}  Rxb3 {[%clk 0:01:47]} 24. Bxe4 {[%clk 0:00:48]}  Bxe4 {[%clk 0:01:44]} 25. Bxc5 {[%clk 0:00:47]}  Rc8 {[%clk 0:01:39]} 26. Bd4 {[%clk 0:00:47]}  Rxc4+ {[%clk 0:01:17]} 27. Bc3 {[%clk 0:00:48]}  g6 {[%clk 0:01:17]} 28. h4 {[%clk 0:00:46]}  a4 {[%clk 0:00:49]} 29. Rg3 {[%clk 0:00:33]}  Kf7 {[%clk 0:00:41]} 30. h5 {[%clk 0:00:33]}  Rc6 {[%clk 0:00:39]} 31. hxg6+ {[%clk 0:00:30]}  hxg6 {[%clk 0:00:40]} 32. Rd4 {[%clk 0:00:26]}  Ra6 {[%clk 0:00:36]} 33. Rd2 {[%clk 0:00:23]}  Rbb6 {[%clk 0:00:36]} 34. Rh2 {[%clk 0:00:18]}  Rxd6 {[%clk 0:00:36]} 35. Rh7+ {[%clk 0:00:18]}  Ke6 {[%clk 0:00:36]} 36. Rxg6+ {[%clk 0:00:16]}  Kd5 {[%clk 0:00:37]} 37. Rxd7 {[%clk 0:00:14]}  Rxd7 {[%clk 0:00:11]} 38. Rxa6 {[%clk 0:00:14]}  Kc4 {[%clk 0:00:12]} 39. Rxa4+ {[%clk 0:00:13]}  Kd3 {[%clk 0:00:13]} 40. Rb4 {[%clk 0:00:09]}  Ke3 {[%clk 0:00:10]} 41. a4 {[%clk 0:00:07]}  Kxf4 {[%clk 0:00:09]} 42. a5 {[%clk 0:00:06]}  Ke3 {[%clk 0:00:09]} 43. a6 {[%clk 0:00:06]}  f4 {[%clk 0:00:09]} 44. a7 {[%clk 0:00:06]}  Rd8 {[%clk 0:00:09]} 45. Rb8 {[%clk 0:00:05]}  Rd7 {[%clk 0:00:03]} 46. a8=Q {[%clk 0:00:03]}  Bxa8 {[%clk 0:00:04]} 47. Rxa8 {[%clk 0:00:04]}  f3 {[%clk 0:00:05]} 48. Re8+ {[%clk 0:00:04]}  Kf2 {[%clk 0:00:05]} 49. Kc2 {[%clk 0:00:03]}  Kf1 {[%clk 0:00:05]} 50. Rf8 {[%clk 0:00:03]}  f2 {[%clk 0:00:05]} 51. b4 {[%clk 0:00:04]}  Ke2 {[%clk 0:00:05]} 52. Re8+ {[%clk 0:00:03]}  Kf3 {[%clk 0:00:04]} 53. Rf8+ {[%clk 0:00:03]}  Kg2 {[%clk 0:00:05]} 54. Rg8+ {[%clk 0:00:03]}  Kf3 {[%clk 0:00:05]} 55. Rf8+ {[%clk 0:00:03]}  Kg2 {[%clk 0:00:06]} 56. Kb3 {[%clk 0:00:02]}  f1=Q {[%clk 0:00:06]} 57. Rxf1 {[%clk 0:00:03]}  Kxf1 {[%clk 0:00:07]} 58. Kc4 {[%clk 0:00:03]}  Rb7 {[%clk 0:00:07]} 59. Bd4 {[%clk 0:00:04]}  Rxb4+ {[%clk 0:00:07]} 60. Kxb4 {[%clk 0:00:04]} 1/2-1/2


[Site "https://www.chess.com"]

[Event "Titled Tuesday Blitz July 11 Late 2023"]
[White "Garcia Ramos, Daniel"]
[Black "Kollars, Dmitrij"]
[WhiteFideId "32010311"]
[BlackFideId "12909572"]
[WhiteElo "2614"]
[BlackElo "2970"]
[Result "0-1"]
[Round "6"]
[TimeControl "180+2"]
[Date "2023.07.11"]
[WhiteClock "0:00:04"]
[BlackClock "0:00:55"]
[Board "29"]

1. e4 {[%clk 0:03:00]}  c5 {[%clk 0:02:57]} 2. Nf3 {[%clk 0:02:59]}  Nc6 {[%clk 0:02:58]} 3. d4 {[%clk 0:02:59]}  cxd4 {[%clk 0:02:58]} 4. Nxd4 {[%clk 0:03:00]}  Nf6 {[%clk 0:02:59]} 5. Nc3 {[%clk 0:03:00]}  e6 {[%clk 0:02:59]} 6. Ndb5 {[%clk 0:02:57]}  Bc5 {[%clk 0:02:57]} 7. Bf4 {[%clk 0:02:53]}  O-O {[%clk 0:02:57]} 8. Bc7 {[%clk 0:02:53]}  Qe7 {[%clk 0:02:56]} 9. Bd6 {[%clk 0:02:53]}  Bxd6 {[%clk 0:02:57]} 10. Qxd6 {[%clk 0:02:54]}  Qd8 {[%clk 0:02:57]} 11. O-O-O {[%clk 0:02:40]}  Ne8 {[%clk 0:02:55]} 12. Qg3 {[%clk 0:02:39]}  a6 {[%clk 0:02:56]} 13. Nd4 {[%clk 0:02:39]}  Nxd4 {[%clk 0:02:53]} 14. Rxd4 {[%clk 0:02:40]}  b5 {[%clk 0:02:54]} 15. Be2 {[%clk 0:02:35]}  Bb7 {[%clk 0:02:53]} 16. Rhd1 {[%clk 0:02:35]}  Bc6 {[%clk 0:02:53]} 17. e5 {[%clk 0:02:32]}  f5 {[%clk 0:02:51]} 18. Bf3 {[%clk 0:02:20]}  Bxf3 {[%clk 0:02:48]} 19. Qxf3 {[%clk 0:02:21]}  Ra7 {[%clk 0:02:39]} 20. h4 {[%clk 0:02:09]}  Rc7 {[%clk 0:02:38]} 21. g3 {[%clk 0:02:04]}  Qe7 {[%clk 0:02:35]} 22. Qd3 {[%clk 0:02:01]}  Rf7 {[%clk 0:02:30]} 23. Rd6 {[%clk 0:01:54]}  b4 {[%clk 0:02:18]} 24. Ne2 {[%clk 0:01:50]}  a5 {[%clk 0:02:17]} 25. Nf4 {[%clk 0:01:46]}  a4 {[%clk 0:02:07]} 26. Kb1 {[%clk 0:01:41]}  a3 {[%clk 0:02:04]} 27. Qd4 {[%clk 0:01:36]}  axb2 {[%clk 0:02:01]} 28. Rb6 {[%clk 0:01:32]}  Qc5 {[%clk 0:01:43]} 29. Qxc5 {[%clk 0:01:19]}  Rxc5 {[%clk 0:01:44]} 30. Rb8 {[%clk 0:01:08]}  Re7 {[%clk 0:01:43]} 31. Nd3 {[%clk 0:00:56]}  Rd5 {[%clk 0:01:39]} 32. Kxb2 {[%clk 0:00:52]}  Kf7 {[%clk 0:01:36]} 33. Rxb4 {[%clk 0:00:50]}  d6 {[%clk 0:01:34]} 34. c4 {[%clk 0:00:47]}  Ra5 {[%clk 0:01:30]} 35. Rb5 {[%clk 0:00:44]}  Ra6 {[%clk 0:01:23]} 36. Kb3 {[%clk 0:00:40]}  Rea7 {[%clk 0:01:22]} 37. Nb4 {[%clk 0:00:36]}  Ra3+ {[%clk 0:01:19]} 38. Kb2 {[%clk 0:00:36]}  dxe5 {[%clk 0:01:18]} 39. Rxe5 {[%clk 0:00:34]}  Rf3 {[%clk 0:01:19]} 40. Rd2 {[%clk 0:00:25]}  Nf6 {[%clk 0:01:19]} 41. Nc6 {[%clk 0:00:22]}  Ra6 {[%clk 0:01:15]} 42. Nd8+ {[%clk 0:00:21]}  Ke7 {[%clk 0:01:12]} 43. Nb7 {[%clk 0:00:19]}  Ne4 {[%clk 0:01:11]} 44. Re2 {[%clk 0:00:18]}  Rfa3 {[%clk 0:01:07]} 45. Ka1 {[%clk 0:00:10]}  Nc3 {[%clk 0:01:05]} 46. Rxe6+ {[%clk 0:00:04]}  Rxe6 {[%clk 0:01:01]} 47. Rxe6+ {[%clk 0:00:05]}  Kxe6 {[%clk 0:01:02]} 48. Kb2 {[%clk 0:00:05]}  Ra7 {[%clk 0:00:58]} 49. Nc5+ {[%clk 0:00:06]}  Kd6 {[%clk 0:00:59]} 50. Nd3 {[%clk 0:00:05]}  Ne4 {[%clk 0:00:55]} 51. f3 {[%clk 0:00:05]}  Nxg3 {[%clk 0:00:55]} 52. Kb3 {[%clk 0:00:05]}  Ne2 {[%clk 0:00:55]} 53. c5+ {[%clk 0:00:06]}  Kd5 {[%clk 0:00:55]} 54. a4 {[%clk 0:00:05]}  Nd4+ {[%clk 0:00:53]} 55. Kb4 {[%clk 0:00:05]}  Rb7+ {[%clk 0:00:53]} 56. Kc3 {[%clk 0:00:05]}  Rb3+ {[%clk 0:00:52]} 57. Kd2 {[%clk 0:00:04]}  Nxf3+ {[%clk 0:00:53]} 58. Ke3 {[%clk 0:00:04]}  Ne5 {[%clk 0:00:53]} 59. Kf4 {[%clk 0:00:04]}  Rxd3 {[%clk 0:00:53]} 60. Kxf5 {[%clk 0:00:04]}  Rf3+ {[%clk 0:00:53]} 61. Kg5 {[%clk 0:00:04]}  h6+ {[%clk 0:00:54]} 62. Kh5 {[%clk 0:00:04]}  Rf5# {[%clk 0:00:55]} 0-1


[Site "https://www.chess.com"]

[Event "Titled Tuesday Blitz July 11 Late 2023"]
[White "Guz, Ari"]
[Black "Zhigalko, Sergei"]
[WhiteFideId "2825759"]
[BlackFideId "13502956"]
[WhiteElo "2583"]
[BlackElo "2881"]
[Result "0-1"]
[Round "6"]
[TimeControl "180+2"]
[Date "2023.07.11"]
[WhiteClock "0:00:19"]
[BlackClock "0:01:05"]
[Board "31"]

1. a3 {[%clk 0:03:00]}  e5 {[%clk 0:02:55]} 2. e4 {[%clk 0:02:59]}  Nf6 {[%clk 0:02:53]} 3. Nc3 {[%clk 0:02:59]}  Bc5 {[%clk 0:02:53]} 4. h3 {[%clk 0:02:58]}  d5 {[%clk 0:02:52]} 5. exd5 {[%clk 0:02:58]}  Nxd5 {[%clk 0:02:51]} 6. Bc4 {[%clk 0:02:59]}  Nf4 {[%clk 0:02:48]} 7. Qf3 {[%clk 0:02:56]}  Nc6 {[%clk 0:02:35]} 8. Nge2 {[%clk 0:02:14]}  O-O {[%clk 0:02:34]} 9. O-O {[%clk 0:02:05]}  Ne6 {[%clk 0:02:25]} 10. Ne4 {[%clk 0:01:50]}  Ncd4 {[%clk 0:02:19]} 11. Nxd4 {[%clk 0:01:33]}  Nxd4 {[%clk 0:02:19]} 12. Qd3 {[%clk 0:01:30]}  Bf5 {[%clk 0:02:02]} 13. c3 {[%clk 0:01:30]}  Qh4 {[%clk 0:02:02]} 14. Re1 {[%clk 0:01:07]}  Nc2 {[%clk 0:01:58]} 15. Qxc2 {[%clk 0:00:53]}  Bxf2+ {[%clk 0:01:58]} 16. Kf1 {[%clk 0:00:52]}  Bxe1 {[%clk 0:01:57]} 17. d3 {[%clk 0:00:53]}  Bxe4 {[%clk 0:01:49]} 18. dxe4 {[%clk 0:00:52]}  Bg3 {[%clk 0:01:41]} 19. Be3 {[%clk 0:00:47]}  b6 {[%clk 0:01:22]} 20. Kg1 {[%clk 0:00:43]}  Rad8 {[%clk 0:01:20]} 21. Rf1 {[%clk 0:00:41]}  Bf4 {[%clk 0:01:21]} 22. Bf2 {[%clk 0:00:40]}  Qg5 {[%clk 0:01:17]} 23. Bd5 {[%clk 0:00:33]}  c6 {[%clk 0:01:13]} 24. Bxc6 {[%clk 0:00:25]}  Rd2 {[%clk 0:01:14]} 25. Qb3 {[%clk 0:00:25]}  Be3 {[%clk 0:01:08]} 26. Bd5 {[%clk 0:00:19]}  Qg3 {[%clk 0:01:05]} 0-1


[Site "https://www.chess.com"]

[Event "Titled Tuesday Blitz July 11 Late 2023"]
[White "Dardha, Daniel"]
[Black "Shohat, Yotam"]
[WhiteFideId "240990"]
[BlackFideId "2813955"]
[WhiteElo "2869"]
[BlackElo "2577"]
[Result "1-0"]
[Round "6"]
[TimeControl "180+2"]
[Date "2023.07.11"]
[WhiteClock "0:00:51"]
[BlackClock "0:00:01"]
[Board "32"]

1. b3 {[%clk 0:03:00]}  e5 {[%clk 0:02:59]} 2. Bb2 {[%clk 0:03:01]}  Nc6 {[%clk 0:02:58]} 3. e3 {[%clk 0:03:01]}  d5 {[%clk 0:02:57]} 4. Bb5 {[%clk 0:02:59]}  Bd6 {[%clk 0:02:56]} 5. Nf3 {[%clk 0:02:56]}  f6 {[%clk 0:02:56]} 6. c4 {[%clk 0:02:56]}  a6 {[%clk 0:02:45]} 7. Ba4 {[%clk 0:02:54]}  Ne7 {[%clk 0:02:25]} 8. d4 {[%clk 0:02:51]}  e4 {[%clk 0:02:17]} 9. Nfd2 {[%clk 0:02:49]}  b5 {[%clk 0:02:14]} 10. cxb5 {[%clk 0:02:46]}  Nb4 {[%clk 0:02:14]} 11. O-O {[%clk 0:02:41]}  O-O {[%clk 0:02:13]} 12. Ba3 {[%clk 0:02:24]}  f5 {[%clk 0:01:27]} 13. Bxb4 {[%clk 0:02:22]}  Bxb4 {[%clk 0:01:27]} 14. f4 {[%clk 0:02:16]}  Bd7 {[%clk 0:01:14]} 15. bxa6 {[%clk 0:02:11]}  Bxa4 {[%clk 0:01:15]} 16. bxa4 {[%clk 0:02:12]}  Rxa6 {[%clk 0:01:14]} 17. a3 {[%clk 0:02:09]}  Bd6 {[%clk 0:01:09]} 18. Nc3 {[%clk 0:02:08]}  Qd7 {[%clk 0:01:07]} 19. Nb5 {[%clk 0:02:06]}  Rfa8 {[%clk 0:01:05]} 20. Nc3 {[%clk 0:01:53]}  c5 {[%clk 0:01:05]} 21. Nb3 {[%clk 0:01:53]}  c4 {[%clk 0:01:01]} 22. Nc5 {[%clk 0:01:54]}  Bxc5 {[%clk 0:00:51]} 23. dxc5 {[%clk 0:01:54]}  Ra5 {[%clk 0:00:40]} 24. Qd4 {[%clk 0:01:48]}  Qc6 {[%clk 0:00:39]} 25. Rfb1 {[%clk 0:01:40]}  Qxc5 {[%clk 0:00:38]} 26. Qxc5 {[%clk 0:01:39]}  Rxc5 {[%clk 0:00:39]} 27. Rb5 {[%clk 0:01:39]}  Rcc8 {[%clk 0:00:30]} 28. Rd1 {[%clk 0:01:36]}  Rd8 {[%clk 0:00:27]} 29. a5 {[%clk 0:01:30]}  g6 {[%clk 0:00:15]} 30. Kf2 {[%clk 0:01:23]}  Kf7 {[%clk 0:00:13]} 31. Nxd5 {[%clk 0:01:19]}  Rd7 {[%clk 0:00:07]} 32. Ke2 {[%clk 0:01:12]}  Rad8 {[%clk 0:00:05]} 33. Nc3 {[%clk 0:01:12]}  Rd3 {[%clk 0:00:05]} 34. a6 {[%clk 0:01:11]}  Nc6 {[%clk 0:00:03]} 35. Rb7+ {[%clk 0:01:09]}  Ke6 {[%clk 0:00:03]} 36. Rb6 {[%clk 0:01:08]}  Kd6 {[%clk 0:00:01]} 37. Rc1 {[%clk 0:01:07]}  Kc5 {[%clk 0:00:02]} 38. Na4+ {[%clk 0:01:06]}  Kd5 {[%clk 0:00:03]} 39. Rcb1 {[%clk 0:00:59]}  Kd6 {[%clk 0:00:03]} 40. Nb2 {[%clk 0:00:55]}  Kc7 {[%clk 0:00:02]} 41. Nxd3 {[%clk 0:00:54]}  cxd3+ {[%clk 0:00:02]} 42. Kd2 {[%clk 0:00:53]}  Na5 {[%clk 0:00:03]} 43. R6b4 {[%clk 0:00:52]}  Kc6 {[%clk 0:00:02]} 44. Rc1+ {[%clk 0:00:52]}  Kd5 {[%clk 0:00:01]} 45. Rd4+ {[%clk 0:00:51]} 1-0


[Site "https://www.chess.com"]

[Event "Titled Tuesday Blitz July 11 Late 2023"]
[White "Fiorito, Francisco"]
[Black "Ter-Sahakyan, Samvel"]
[WhiteFideId "180165"]
[BlackFideId "13302531"]
[WhiteElo "2574"]
[BlackElo "2836"]
[Result "1-0"]
[Round "6"]
[TimeControl "180+2"]
[Date "2023.07.11"]
[WhiteClock "0:00:07"]
[BlackClock "0:00:03"]
[Board "33"]

1. Nf3 {[%clk 0:03:00]}  d5 {[%clk 0:02:59]} 2. b3 {[%clk 0:03:01]}  c5 {[%clk 0:02:58]} 3. e3 {[%clk 0:03:01]}  Nc6 {[%clk 0:02:56]} 4. Bb2 {[%clk 0:03:01]}  a6 {[%clk 0:02:53]} 5. Be2 {[%clk 0:02:59]}  Nf6 {[%clk 0:02:52]} 6. O-O {[%clk 0:02:57]}  Bg4 {[%clk 0:02:52]} 7. Ne5 {[%clk 0:02:56]}  Bxe2 {[%clk 0:02:46]} 8. Qxe2 {[%clk 0:02:56]}  Qc7 {[%clk 0:02:47]} 9. Nxc6 {[%clk 0:02:56]}  Qxc6 {[%clk 0:02:47]} 10. d3 {[%clk 0:02:57]}  g6 {[%clk 0:02:42]} 11. Nd2 {[%clk 0:02:57]}  Bg7 {[%clk 0:02:42]} 12. Nf3 {[%clk 0:02:46]}  O-O {[%clk 0:02:42]} 13. Rfe1 {[%clk 0:02:44]}  b5 {[%clk 0:02:39]} 14. Rad1 {[%clk 0:02:43]}  a5 {[%clk 0:02:35]} 15. c4 {[%clk 0:02:39]}  a4 {[%clk 0:02:22]} 16. Ne5 {[%clk 0:02:39]}  Qb7 {[%clk 0:02:22]} 17. Qc2 {[%clk 0:02:08]}  Rfc8 {[%clk 0:02:12]} 18. h3 {[%clk 0:02:03]}  Rc7 {[%clk 0:02:04]} 19. Rb1 {[%clk 0:01:57]}  e6 {[%clk 0:01:49]} 20. Nf3 {[%clk 0:01:48]}  Rcc8 {[%clk 0:01:40]} 21. bxa4 {[%clk 0:01:47]}  b4 {[%clk 0:01:32]} 22. Bxf6 {[%clk 0:01:34]}  Bxf6 {[%clk 0:01:31]} 23. a3 {[%clk 0:01:34]}  Rcb8 {[%clk 0:01:23]} 24. axb4 {[%clk 0:01:18]}  cxb4 {[%clk 0:01:23]} 25. Nd2 {[%clk 0:01:06]}  Bc3 {[%clk 0:01:21]} 26. Rec1 {[%clk 0:01:02]}  Qc6 {[%clk 0:01:10]} 27. Rb3 {[%clk 0:00:24]}  Qxa4 {[%clk 0:00:59]} 28. Nb1 {[%clk 0:00:24]}  dxc4 {[%clk 0:00:42]} 29. dxc4 {[%clk 0:00:25]}  Bf6 {[%clk 0:00:40]} 30. c5 {[%clk 0:00:26]}  Qc6 {[%clk 0:00:39]} 31. Qc4 {[%clk 0:00:23]}  Ra4 {[%clk 0:00:29]} 32. Nd2 {[%clk 0:00:22]}  Be7 {[%clk 0:00:23]} 33. Nf3 {[%clk 0:00:21]}  Ra5 {[%clk 0:00:14]} 34. Rxb4 {[%clk 0:00:16]}  Rxb4 {[%clk 0:00:10]} 35. Qxb4 {[%clk 0:00:17]}  Rxc5 {[%clk 0:00:10]} 36. Rxc5 {[%clk 0:00:15]}  Qxc5 {[%clk 0:00:10]} 37. Qb8+ {[%clk 0:00:16]}  Kg7 {[%clk 0:00:09]} 38. g3 {[%clk 0:00:14]}  Qc1+ {[%clk 0:00:07]} 39. Kg2 {[%clk 0:00:14]}  Qc6 {[%clk 0:00:08]} 40. g4 {[%clk 0:00:11]}  h6 {[%clk 0:00:06]} 41. Qb2+ {[%clk 0:00:12]}  Bf6 {[%clk 0:00:06]} 42. Qb4 {[%clk 0:00:08]}  Qd5 {[%clk 0:00:04]} 43. Qf4 {[%clk 0:00:08]}  g5 {[%clk 0:00:03]} 44. Qa4 {[%clk 0:00:07]}  Qb7 {[%clk 0:00:02]} 45. e4 {[%clk 0:00:07]}  Qc7 {[%clk 0:00:02]} 46. Qb4 {[%clk 0:00:06]}  Qf4 {[%clk 0:00:02]} 47. Qe1 {[%clk 0:00:07]}  h5 {[%clk 0:00:02]} 48. gxh5 {[%clk 0:00:04]}  g4 {[%clk 0:00:03]} 49. Ng1 {[%clk 0:00:04]}  Bh4 {[%clk 0:00:01]} 50. hxg4 {[%clk 0:00:03]}  Qxg4+ {[%clk 0:00:02]} 51. Kf1 {[%clk 0:00:04]}  Qxh5 {[%clk 0:00:02]} 52. Qc3+ {[%clk 0:00:05]}  Bf6 {[%clk 0:00:02]} 53. Qg3+ {[%clk 0:00:05]}  Kf8 {[%clk 0:00:02]} 54. Nf3 {[%clk 0:00:05]}  Qh6 {[%clk 0:00:02]} 55. Qb8+ {[%clk 0:00:04]}  Kg7 {[%clk 0:00:02]} 56. e5 {[%clk 0:00:05]}  Be7 {[%clk 0:00:01]} 57. Qb2 {[%clk 0:00:04]}  Bf8 {[%clk 0:00:01]} 58. Qd4 {[%clk 0:00:04]}  Qg6 {[%clk 0:00:01]} 59. Qf4 {[%clk 0:00:02]}  Be7 {[%clk 0:00:01]} 60. Qe3 {[%clk 0:00:02]}  Qf5 {[%clk 0:00:01]} 61. Nd4 {[%clk 0:00:02]}  Qg4 {[%clk 0:00:01]} 62. Ne2 {[%clk 0:00:02]}  Bg5 {[%clk 0:00:02]} 63. Qg3 {[%clk 0:00:02]}  Qxg3 {[%clk 0:00:02]} 64. fxg3 {[%clk 0:00:02]}  Kg6 {[%clk 0:00:01]} 65. Nd4 {[%clk 0:00:02]}  Be3 {[%clk 0:00:02]} 66. Nf3 {[%clk 0:00:03]}  Kf5 {[%clk 0:00:02]} 67. Ke2 {[%clk 0:00:04]}  Bc5 {[%clk 0:00:02]} 68. Kd3 {[%clk 0:00:04]}  Kg4 {[%clk 0:00:02]} 69. Ke4 {[%clk 0:00:04]}  Be7 {[%clk 0:00:02]} 70. Ng1 {[%clk 0:00:01]}  Kxg3 {[%clk 0:00:02]} 71. Ne2+ {[%clk 0:00:02]}  Kg4 {[%clk 0:00:02]} 72. Nd4 {[%clk 0:00:03]}  Bg5 {[%clk 0:00:02]} 73. Nc6 {[%clk 0:00:03]}  Kh5 {[%clk 0:00:02]} 74. Nd4 {[%clk 0:00:04]}  Kg6 {[%clk 0:00:02]} 75. Nc6 {[%clk 0:00:04]}  Bh4 {[%clk 0:00:02]} 76. Nd4 {[%clk 0:00:03]}  Bf2 {[%clk 0:00:02]} 77. Nc6 {[%clk 0:00:03]}  Bc5 {[%clk 0:00:02]} 78. Na5 {[%clk 0:00:03]}  Kg5 {[%clk 0:00:02]} 79. Nc6 {[%clk 0:00:03]}  Kg6 {[%clk 0:00:01]} 80. Nd8 {[%clk 0:00:03]}  Kg7 {[%clk 0:00:01]} 81. Nb7 {[%clk 0:00:04]}  Bb6 {[%clk 0:00:01]} 82. Nd6 {[%clk 0:00:04]}  Bc5 {[%clk 0:00:01]} 83. Nb7 {[%clk 0:00:04]}  Bb4 {[%clk 0:00:02]} 84. Nd8 {[%clk 0:00:03]}  Kf8 {[%clk 0:00:02]} 85. Nc6 {[%clk 0:00:04]}  Bc5 {[%clk 0:00:02]} 86. Nb8 {[%clk 0:00:05]}  Ke8 {[%clk 0:00:02]} 87. Na6 {[%clk 0:00:04]}  Ba3 {[%clk 0:00:02]} 88. Nc7+ {[%clk 0:00:04]}  Kd7 {[%clk 0:00:03]} 89. Nb5 {[%clk 0:00:05]}  Bc5 {[%clk 0:00:03]} 90. Nc3 {[%clk 0:00:05]}  Bb4 {[%clk 0:00:03]} 91. Nb5 {[%clk 0:00:04]}  Kc6 {[%clk 0:00:04]} 92. Nd4+ {[%clk 0:00:05]}  Kd7 {[%clk 0:00:04]} 93. Nf3 {[%clk 0:00:05]}  Be7 {[%clk 0:00:04]} 94. Nd4 {[%clk 0:00:05]}  Kc7 {[%clk 0:00:04]} 95. Nb5+ {[%clk 0:00:06]}  Kb6 {[%clk 0:00:05]} 96. Nd4 {[%clk 0:00:06]}  Kc5 {[%clk 0:00:05]} 97. Ne2 {[%clk 0:00:07]}  Kc4 {[%clk 0:00:05]} 98. Nd4 {[%clk 0:00:07]}  Kc3 {[%clk 0:00:04]} 99. Nc6 {[%clk 0:00:07]}  Bg5 {[%clk 0:00:04]} 100. Nd4 {[%clk 0:00:07]}  Kc4 {[%clk 0:00:03]} 101. Nf3 {[%clk 0:00:07]}  Be7 {[%clk 0:00:03]} 102. Nd4 {[%clk 0:00:07]}  Kc5 {[%clk 0:00:03]} 103. Nf3 {[%clk 0:00:07]}  Kc6 {[%clk 0:00:03]} 104. Nd4+ {[%clk 0:00:08]}  Kd7 {[%clk 0:00:04]} 105. Nb5 {[%clk 0:00:09]}  Bd8 {[%clk 0:00:04]} 106. Nd6 {[%clk 0:00:09]}  f5+ {[%clk 0:00:04]} 107. Kf4 {[%clk 0:00:06]}  Bc7 {[%clk 0:00:04]} 108. Nf7 {[%clk 0:00:06]}  Ke7 {[%clk 0:00:04]} 109. Ng5 {[%clk 0:00:06]}  Ba5 {[%clk 0:00:04]} 110. Ke3 {[%clk 0:00:04]}  Bc3 {[%clk 0:00:03]} 111. Nf3 {[%clk 0:00:04]}  Bb2 {[%clk 0:00:04]} 112. Kf4 {[%clk 0:00:02]}  Kd7 {[%clk 0:00:04]} 113. Kg5 {[%clk 0:00:02]}  Ke7 {[%clk 0:00:04]} 114. Kg6 {[%clk 0:00:02]}  Bc3 {[%clk 0:00:03]} 115. Kg5 {[%clk 0:00:03]}  Bd2+ {[%clk 0:00:03]} 116. Nxd2 {[%clk 0:00:02]}  Kf7 {[%clk 0:00:03]} 117. Nf3 {[%clk 0:00:03]}  Kg7 {[%clk 0:00:03]} 118. Nd4 {[%clk 0:00:04]}  Kf7 {[%clk 0:00:04]} 119. Kf4 {[%clk 0:00:03]}  Ke7 {[%clk 0:00:04]} 120. Nf3 {[%clk 0:00:03]}  Kf7 {[%clk 0:00:04]} 121. Ng5+ {[%clk 0:00:04]}  Ke7 {[%clk 0:00:05]} 122. Ke3 {[%clk 0:00:05]}  Kd7 {[%clk 0:00:05]} 123. Kd4 {[%clk 0:00:05]}  Ke7 {[%clk 0:00:04]} 124. Kc5 {[%clk 0:00:05]}  Kd7 {[%clk 0:00:05]} 125. Kb6 {[%clk 0:00:06]}  Ke7 {[%clk 0:00:05]} 126. Kc6 {[%clk 0:00:07]}  f4 {[%clk 0:00:04]} 127. Kc5 {[%clk 0:00:07]}  Kd7 {[%clk 0:00:04]} 128. Kd4 {[%clk 0:00:07]}  Kc6 {[%clk 0:00:04]} 129. Ke4 {[%clk 0:00:08]}  f3 {[%clk 0:00:03]} 130. Nxf3 {[%clk 0:00:07]} 1-0


[Site "https://www.chess.com"]